bitfinex/quotes_ETHUSD_20260102
["timestamp","ask_amount","ask_price","bid_price","bid_amount"]
[1767317807440,2.3807522,3001.2,3000.3,6.33887326]
[1767317807636,2.3807522,3001.2,3000.3,3.88442442]
[1767317807849,2.3807522,3001.1,3000.4,2.45444884]
[1767317808229,2.3817522,3001.4,3000.8,2.45444884]
[1767317809053,0.001,3001.4,3000.8,2.45444884]
[1767317809349,0.001,3001.4,3000.9,2.45444884]
[1767317810948,2.3807522,3001.6,3000.9,2.35204058]
[1767317812560,2.26191008,3001.5,3000.9,2.35204058]
[1767317812766,2.26191008,3001.0,3000.3,2.35204058]
[1767317813121,3.88442442,3001.1,3000.3,2.35204058]
[1767317813122,2.26191008,3000.8,3000.3,2.35204058]
[1767317813339,2.26191008,3000.8,3000.3,2.67474464]
[1767317815779,2.26191008,3000.8,3000.0,0.875]
[1767317815966,2.26191008,3000.8,3000.1,2.27001429]
[1767317816362,2.26191008,3000.8,3000.3,0.002]
[1767317816765,2.3567142,3000.6,2999.7,5.60361206]
[1767317816949,2.3567142,3000.6,2999.9,2.27001429]
[1767317817145,2.3567142,3000.6,3000.0,2.27001429]
[1767317823166,3.88442442,3000.9,3000.0,2.27001429]
[1767317823167,2.3567142,3000.9,3000.0,2.27001429]
[1767317823861,2.3567142,3000.9,2999.8,0.875]
[1767317823862,2.3567142,3000.8,2999.8,0.875]
[1767317824164,2.3567142,3000.8,3000.0,0.002]
[1767317824370,2.3567142,3000.7,3000.0,2.27201429]
[1767317825685,3.96425412,3000.7,3000.0,2.27201429]
[1767317825987,2.3567142,3000.6,3000.0,2.27201429]
[1767317829702,2.3567142,3000.5,3000.0,2.27201429]
[1767317830601,2.3567142,3000.5,3000.0,0.002]
[1767317830782,2.92565558,3000.4,3000.0,0.002]
[1767317831970,2.3567142,3000.4,3000.0,2.27201429]
[1767317832498,2.3577142,3000.7,3000.0,2.27201429]
[1767317832889,2.3567142,3000.6,3000.0,2.27201429]
[1767317834378,0.001,3000.7,3000.2,2.27001429]
[1767317835376,2.3577142,3000.7,3000.2,2.27001429]
[1767317837524,0.001,3000.7,3000.2,2.27001429]
[1767317837723,2.3567142,3000.9,3000.3,2.27001429]
[1767317838034,2.4365439,3001.2,3000.3,2.27001429]
[1767317839419,0.0798297,3001.0,3000.3,2.27001429]
[1767317839626,2.3567142,3000.9,3000.3,2.27001429]
[1767317840026,0.001,3000.7,3000.3,2.27001429]
[1767317840226,0.001,3000.7,3000.1,0.875]
[1767317840227,2.3567142,3000.6,3000.1,2.27001429]
[1767317840523,2.3567142,3000.2,2999.2,0.002]
[1767317840730,2.3567142,3000.2,2999.5,2.27201429]
[1767317843128,5.76928812,3000.6,2999.7,2.27001429]
[1767317843291,2.4365439,3000.5,2999.6,2.27001429]
[1767317844237,2.46875112,3000.4,2999.6,2.27001429]
[1767317847041,5.80165435,3000.4,2999.6,2.27001429]
[1767317847260,2.46875112,3000.3,2999.6,2.27001429]
[1767317849045,0.0798297,3000.5,2999.8,2.25523282]
[1767317849046,2.54858082,3000.5,2999.8,2.25523282]
[1767317849415,2.46875112,3000.4,2999.8,2.25523282]
[1767317851727,3.88556853,3001.1,2999.8,2.25523282]
[1767317851728,2.46875112,3001.2,3000.1,2.25523282]
[1767317851929,2.46875112,3001.0,3000.2,2.25523282]
[1767317852179,2.7236092,3001.0,3000.2,2.25523282]
[1767317852627,2.46875112,3000.9,3000.2,2.25523282]
[1767317854660,2.46975112,3000.9,3000.2,2.25523282]
[1767317856350,2.46875112,3000.8,3000.2,2.25523282]
[1767317859274,2.46875112,3000.7,3000.0,2.25523282]
[1767317859472,2.46875112,3000.6,3000.0,2.25523282]
[1767317860381,2.46875112,3000.6,2999.8,2.25723282]
[1767317863181,2.46875112,3000.6,3000.1,2.25523282]
[1767317866371,2.46875112,3000.6,3000.0,0.002]
[1767317867110,2.54858082,3000.6,3000.0,0.002]
[1767317867264,0.58812055,3000.5,3000.0,0.002]
[1767317867470,2.46875112,3000.4,3000.0,0.002]
[1767317867699,2.46875112,3000.4,3000.0,2.25723282]
[1767317868209,2.46875112,3000.4,3000.0,0.002]
[1767317872608,3.33290154,3000.4,3000.0,0.002]
[1767317872778,2.80204127,3000.3,2999.8,0.002]
[1767317874414,2.30635286,3000.1,2999.5,2.43107029]
[1767317875198,2.30635286,3000.0,2999.5,2.43107029]
[1767317876216,2.8703175,3000.0,2999.5,2.43107029]
[1767317876896,2.30635286,2999.9,2999.3,2.42907029]
[1767317879930,2.30635286,2999.8,2999.3,2.42907029]
[1767317880726,2.30635286,2999.8,2999.2,0.002]
[1767317880929,2.30635286,2999.7,2999.2,0.002]
[1767317881139,2.30635286,2999.7,2999.2,2.43107029]
[1767317881349,0.33329015,3000.3,2999.2,2.43107029]
[1767317881547,2.30635286,3000.6,2999.2,2.43107029]
[1767317882217,6.66533358,3000.6,2999.2,2.43107029]
[1767317882420,2.30635286,3000.5,2999.2,2.43107029]
[1767317882614,2.38618256,3000.5,2999.2,2.43107029]
[1767317882947,7.57092949,3000.4,2999.3,0.33070703]
[1767317883114,7.57092949,3000.4,2999.4,2.42907029]
[1767317883115,2.30635286,3000.3,2999.4,2.42907029]
[1767317885662,3.33310142,3000.3,2999.4,2.42907029]
[1767317885855,2.30635286,3000.2,2999.4,2.42907029]
[1767317887057,3.33310142,3000.3,2999.4,2.42907029]
[1767317887365,5.63945428,3000.3,2999.6,2.42907029]
[1767317887534,6.62729436,3000.3,2999.6,2.42907029]
[1767317889305,0.001,3000.4,2999.8,2.42907029]
[1767317889474,5.63901606,3000.7,3000.0,2.42907029]
[1767317891563,2.30635286,3000.7,3000.0,2.42907029]
[1767317891908,2.30635286,3000.7,2999.9,3.88596257]
[1767317891909,5.63970419,3000.9,3000.2,2.42907029]
[1767317892059,6.5448696,3000.9,3000.2,2.42907029]
[1767317892259,4.23851674,3000.9,3000.2,2.42907029]
[1767317892570,2.30635286,3000.8,3000.2,2.42907029]
[1767317893261,2.30635286,3000.8,3000.1,0.876]
[1767317893600,2.30635286,3000.8,3000.2,2.42907029]
[1767317894994,0.001,3000.9,3000.2,2.75957732]
[1767317895706,0.001,3000.9,3000.3,3.88596257]
[1767317895910,3.33278867,3001.4,3000.3,3.88596257]
[1767317895911,2.30635286,3001.2,3000.6,2.42907029]
[1767317897297,5.638361,3001.2,3000.6,2.42907029]
[1767317897499,2.30635286,3001.1,3000.6,2.42907029]
[1767317900501,3.33192576,3001.3,3000.6,2.42907029]
[1767317900502,2.30635286,3001.3,3000.6,2.42907029]
[1767317901810,2.30635286,3001.3,3000.6,2.67197732]
[1767317902421,0.001,3001.1,3000.6,2.67197732]
[1767317902989,0.001,3001.1,3000.7,2.42907029]
[1767317903817,2.30635286,3001.3,3000.7,2.40944886]
[1767317910510,2.30735286,3001.3,3000.7,2.40944886]
[1767317917722,2.48422173,3001.2,3000.7,2.40944886]
[1767317927636,2.48522173,3001.2,3000.7,2.40944886]
[1767317930640,0.001,3001.3,3000.7,2.27110488]
[1767317938049,2.3598425,3001.3,3000.7,2.27110488]
[1767317940344,0.001,3001.4,3001.1,2.41692739]
[1767317940526,2.3588425,3001.5,3001.2,2.41692739]
[1767317941129,0.001,3001.7,3001.2,2.41692739]
[1767317941130,2.3598425,3001.7,3001.2,2.41692739]
[1767317942345,0.001,3001.8,3001.3,2.41692739]
[1767317943050,2.3588425,3001.9,3001.3,2.41692739]
[1767317943253,2.3588425,3001.9,3001.5,2.41692739]
[1767317943949,0.001,3001.7,3001.5,2.41692739]
[1767317947567,2.3598425,3001.7,3001.1,2.41692739]
[1767317948146,2.3598425,3001.7,3001.2,0.875]
[1767317948351,2.3598425,3001.7,3001.3,2.41692739]
[1767317949941,2.3598425,3001.7,3000.8,2.41692739]
[1767317950132,2.3588425,3001.6,3000.8,2.41692739]
[1767317951053,2.4386722,3001.6,3000.9,2.41692739]
[1767317952159,5.77025218,3001.6,3000.9,2.41692739]
[1767317952470,2.3588425,3001.5,3000.9,2.41692739]
[1767317958967,2.3588425,3001.5,3000.7,3.29192739]
[1767317959271,2.3588425,3001.4,3000.7,3.29192739]
[1767317959452,2.3588425,3001.4,3000.8,2.41692739]
[1767317960277,2.3588425,3001.4,3000.9,2.41892739]
[1767317971660,3.41229558,3001.7,3000.9,2.41892739]
[1767317971860,0.0808297,3001.7,3000.9,2.41892739]
[1767317972165,2.40089591,3001.6,3000.9,2.41892739]
[1767317975486,4.63519563,3001.7,3000.9,2.41892739]
[1767317975487,0.001,3001.7,3001.1,2.41981597]
[1767317975656,0.001,3001.7,3001.3,2.41981597]
[1767317975855,2.40189591,3001.8,3001.3,2.41981597]
[1767317976154,2.40189591,3001.8,3001.5,2.41981597]
[1767317977283,0.001,3001.6,3001.5,2.41981597]
[1767317977685,0.001,3001.8,3001.5,2.41981597]
[1767317978356,2.40189591,3001.8,3001.5,2.41981597]
[1767317981185,0.001,3002.0,3001.5,2.41981597]
[1767317981493,2.40189591,3002.0,3001.6,0.27393179]
[1767317981790,2.40189591,3002.0,3001.5,2.41981597]
[1767317983194,0.001,3002.1,3001.7,3.88195265]
[1767317983492,0.001,3002.2,3001.8,2.41981597]
[1767317984564,2.40189591,3002.4,3001.8,2.41981597]
[1767317984866,0.001,3002.4,3001.8,2.41981597]
[1767317985086,0.001,3002.4,3002.0,2.41981597]
[1767317985586,0.001,3002.5,3002.0,2.41981597]
[1767317985990,2.40189591,3002.5,3002.0,2.41981597]
[1767317986894,2.40189591,3002.5,3001.5,2.41981597]
[1767317987059,2.40089591,3002.3,3001.5,2.41981597]
[1767317987267,2.40089591,3002.2,3001.6,0.27492976]
[1767317990598,2.40089591,3002.1,3000.9,3.33432637]
[1767317990896,2.48072561,3002.1,3001.1,2.41981597]
[1767317992501,2.40089591,3001.9,3001.1,2.41981597]
[1767317993771,2.40089591,3001.9,3001.1,2.74949757]
[1767317996607,2.31027926,3001.8,3001.3,2.25954652]
[1767317996904,2.31027926,3001.8,3001.0,2.25954652]
[1767317997083,2.31027926,3001.8,3001.1,3.13454652]
[1767317997288,3.33136177,3001.8,3001.1,3.13454652]
[1767317997604,2.31027926,3001.7,3001.0,2.25954652]
[1767317997805,2.31027926,3001.7,3001.1,0.875]
[1767317998102,2.31027926,3001.7,3001.1,3.13454652]
[1767318001106,2.31127926,3001.7,3001.1,3.13454652]
[1767318001310,2.31127926,3001.7,3001.1,2.25954652]
[1767318001507,0.001,3001.7,3001.2,2.25954652]
[1767318001680,5.64224625,3002.2,3001.3,2.25954652]
[1767318001880,2.31027926,3002.1,3001.3,2.25954652]
[1767318002777,0.001,3002.2,3001.5,2.25954652]
[1767318002983,0.001,3002.2,3001.7,2.25954652]
[1767318004082,2.31127926,3002.2,3001.7,2.25954652]
[1767318008290,0.001,3002.2,3001.7,2.25954652]
[1767318008495,2.31027926,3002.4,3001.7,2.25954652]
[1767318008750,2.31027926,3002.4,3001.9,2.25954652]
[1767318009305,2.31027926,3002.4,3001.7,2.25954652]
[1767318009510,2.31027926,3002.1,3001.7,2.25954652]
[1767318011297,0.001,3002.2,3001.7,2.25954652]
[1767318012017,2.31127926,3002.2,3001.7,2.25954652]
[1767318012229,2.31127926,3002.2,3001.7,2.59612981]
[1767318016210,2.31127926,3002.2,3001.7,2.25954652]
[1767318017020,2.31127926,3002.2,3001.5,0.002]
[1767318017221,2.31127926,3002.2,3001.5,3.13654652]
[1767318017621,2.31127926,3002.2,3001.6,2.25954652]
[1767318034252,0.001,3002.2,3001.8,2.39677619]
[1767318034421,0.001,3002.2,3001.9,2.43008842]
[1767318035715,0.001,3002.5,3002.0,2.39677619]
[1767318037844,0.001,3002.2,3002.0,2.39677619]
[1767318038332,2.42913229,3002.5,3002.0,2.39677619]
[1767318047553,2.42913229,3002.5,3001.6,2.39677619]
[1767318052255,2.42913229,3002.5,3001.6,5.72832747]
[1767318052447,2.42913229,3002.5,3001.8,2.39677619]
[1767318058059,2.42913229,3002.5,3001.8,2.39877619]
[1767318058258,2.42913229,3002.5,3001.8,0.877]
[1767318059364,2.42913229,3002.5,3001.8,3.18521805]
[1767318059736,2.42913229,3002.5,3001.8,0.877]
[1767318060059,2.42913229,3002.5,3001.9,2.30821805]
[1767318061473,2.43155803,3002.4,3001.9,2.30821805]
[1767318063562,2.43155803,3002.1,3001.8,0.002]
[1767318063769,2.43155803,3002.1,3001.5,2.31021805]
[1767318074786,2.43155803,3002.0,3001.5,0.002]
[1767318075289,2.43155803,3002.0,3001.5,2.31021805]
[1767318076191,0.66374533,3002.0,3001.5,0.002]
[1767318076365,2.43155803,3001.9,3001.5,0.002]
[1767318076567,2.43155803,3001.9,3001.5,2.31021805]
[1767318083672,3.27981139,3002.1,3001.5,2.31021805]
[1767318083997,2.28783155,3002.3,3001.6,2.41156064]
[1767318084198,0.875,3002.3,3001.8,2.41156064]
[1767318084411,0.875,3002.3,3002.0,2.41156064]
[1767318087505,0.001,3002.1,3002.0,2.41156064]
[1767318094810,0.875,3002.3,3002.0,2.41156064]
[1767318095606,0.001,3002.1,3002.0,2.41156064]
[1767318096513,0.875,3002.3,3002.0,2.41156064]
[1767318097980,0.875,3002.3,3001.6,2.41156064]
[1767318097981,2.28783155,3002.2,3001.6,2.41156064]
[1767318098183,2.28783155,3002.2,3001.5,0.002]
[1767318098184,3.88152998,3002.1,3001.5,0.002]
[1767318098409,2.28783155,3002.0,3001.5,0.002]
[1767318099798,2.28783155,3002.0,3001.5,2.41356064]
[1767318099983,2.28783155,3002.0,3001.5,2.6549167]
[1767318102526,2.28783155,3002.2,3001.5,2.6549167]
[1767318102820,0.875,3002.3,3001.7,2.41156064]
[1767318102988,3.16283155,3002.3,3001.7,2.41156064]
[1767318103188,0.875,3002.3,3001.7,2.41156064]
[1767318103390,2.28783155,3002.2,3001.5,0.24335606]
[1767318103589,2.28783155,3002.2,3001.5,0.002]
[1767318103805,2.28783155,3002.2,3001.5,2.41356064]
[1767318108028,2.28783155,3002.1,3001.5,2.41356064]
[1767318108205,2.28783155,3001.9,3001.3,2.41156064]
[1767318113225,2.28783155,3001.9,3001.3,2.41356064]
[1767318120834,2.45796807,3002.1,3001.3,2.41356064]
[1767318121039,2.45896807,3002.3,3001.5,2.37303532]
[1767318121213,0.001,3002.5,3001.5,2.37303532]
[1767318121214,2.45896807,3002.5,3001.5,2.37303532]
[1767318121530,3.33396807,3002.5,3001.6,0.03331556]
[1767318121718,2.45796807,3002.4,3001.7,2.37303532]
[1767318123022,0.876,3002.5,3001.7,2.61033885]
[1767318124040,3.33396807,3002.5,3001.7,2.61033885]
[1767318124441,0.876,3002.5,3001.7,2.61033885]
[1767318126144,0.876,3002.5,3001.7,5.94169204]
[1767318126443,0.876,3002.5,3001.8,2.37303532]
[1767318126747,0.876,3002.5,3002.0,2.37303532]
[1767318130449,2.45796807,3002.4,3002.0,2.37303532]
[1767318131857,2.45796807,3002.4,3001.9,0.5941692]
[1767318132155,2.45796807,3002.4,3001.7,0.23730353]
[1767318132359,2.45796807,3002.4,3001.7,2.61033885]
[1767318134744,2.45796807,3002.4,3001.7,2.37303532]
[1767318136434,2.45796807,3002.2,3001.6,0.002]
[1767318137260,0.876,3002.5,3001.9,2.37303532]
[1767318137435,2.45796807,3002.4,3002.0,2.37303532]
[1767318138849,2.45796807,3002.4,3002.0,2.64364997]
[1767318139551,2.45796807,3002.4,3002.0,2.61033885]
[1767318140648,0.876,3002.5,3002.0,2.61033885]
[1767318140649,3.33396807,3002.5,3002.0,2.61033885]
[1767318142055,2.45796807,3002.4,3002.0,2.61033885]
[1767318143267,0.876,3002.5,3002.1,0.26103389]
[1767318143443,0.876,3002.5,3002.2,2.37303532]
[1767318144052,3.35084222,3002.5,3002.2,2.37303532]
[1767318147257,0.876,3002.5,3002.2,2.37303532]
[1767318147466,0.001,3002.6,3002.0,2.39524403]
[1767318148142,0.001,3002.6,3002.0,2.42855515]
[1767318148327,0.001,3002.6,3002.2,2.39524403]
[1767318149849,0.001,3002.6,3002.1,0.57617689]
[1767318149850,2.47484222,3002.5,3002.1,0.57617689]
[1767318150056,2.47484222,3002.5,3002.0,2.39524403]
[1767318153775,0.001,3002.6,3002.1,2.39524403]
[1767318153953,0.001,3002.5,3002.1,2.39524403]
[1767318156471,0.001,3002.5,3002.2,2.39524403]
[1767318157566,0.001,3002.5,3001.9,4.75716234]
[1767318157567,2.47584222,3002.5,3001.9,0.877]
[1767318157777,2.47584222,3002.5,3001.9,3.27224403]
[1767318158078,2.47484222,3002.4,3002.0,2.39524403]
[1767318158756,0.001,3002.5,3002.0,2.39524403]
[1767318159274,2.47484222,3002.4,3001.9,0.002]
[1767318159470,0.001,3002.5,3001.9,2.39724403]
[1767318159777,2.47584222,3002.5,3002.0,2.39524403]
[1767318161073,2.47584222,3002.5,3002.0,2.39724403]
[1767318161473,0.001,3002.5,3002.0,2.39724403]
[1767318161661,0.001,3002.5,3002.1,2.39524403]
[1767318164652,0.001,3002.6,3002.1,2.39524403]
[1767318164864,2.47484222,3002.7,3002.3,2.39524403]
[1767318168991,2.47584222,3002.7,3002.3,2.39524403]
[1767318173295,2.47584222,3002.7,3002.1,2.39524403]
[1767318173592,2.47584222,3002.7,3002.1,3.27024403]
[1767318173763,2.47584222,3002.7,3002.1,0.875]
[1767318173968,2.47584222,3002.7,3002.2,2.31161219]
[1767318179699,2.47584222,3002.7,3002.1,0.002]
[1767318179881,2.47584222,3002.7,3002.0,0.877]
[1767318180079,2.47584222,3002.7,3002.2,2.31161219]
[1767318184204,2.47584222,3002.7,3002.1,0.48705789]
[1767318184513,2.47584222,3002.7,3002.1,2.79867008]
[1767318185118,2.47584222,3002.7,3002.1,2.80067008]
[1767318186413,2.47584222,3002.7,3002.1,0.002]
[1767318189717,2.47584222,3002.7,3002.1,2.31361219]
[1767318191724,2.30381869,3002.6,3002.0,0.002]
[1767318191888,2.30381869,3002.4,3002.0,0.002]
[1767318194722,2.30381869,3002.4,3002.0,2.31361219]
[1767318199504,2.53420056,3002.4,3001.9,0.002]
[1767318200601,2.53420056,3002.4,3002.0,0.002]
[1767318201126,2.53420056,3002.4,3001.6,3.18861219]
[1767318201298,2.53420056,3002.4,3001.7,2.31161219]
[1767318214233,2.53520056,3002.4,3001.7,2.31161219]
[1767318215923,0.25352006,3002.3,3001.7,2.31161219]
[1767318216123,2.36664043,3002.2,3001.7,2.31161219]
[1767318219044,2.36664043,3002.2,3001.6,0.877]
[1767318219223,2.36664043,3002.2,3001.6,3.20191142]
[1767318220145,2.36664043,3002.2,3001.6,0.877]
[1767318220351,2.36664043,3002.2,3001.7,2.32491142]
[1767318222849,2.36664043,3002.2,3001.6,2.32691142]
[1767318223015,2.36664043,3002.2,3001.6,3.20191142]
[1767318224341,2.36664043,3002.1,3001.6,3.20191142]
[1767318228325,2.36664043,3002.1,3001.7,2.32491142]
[1767318229814,2.36664043,3002.1,3001.6,0.877]
[1767318231318,2.36664043,3002.1,3001.6,3.20191142]
[1767318237762,2.36664043,3002.1,3001.7,2.27480128]
[1767318238775,2.55207047,3002.4,3001.7,2.27480128]
[1767318239058,0.58827057,3002.3,3001.7,2.27480128]
[1767318239262,2.90895917,3002.3,3001.7,2.27480128]
[1767318239465,2.3206886,3002.2,3001.7,2.27480128]
[1767318247167,2.3216886,3002.2,3001.7,2.27480128]
[1767318258175,2.3206886,3002.1,3001.6,0.877]
[1767318258363,4.50097127,3002.0,3001.5,0.002]
[1767318258550,2.3206886,3001.9,3001.5,2.27680128]
[1767318261880,2.3206886,3002.1,3001.5,2.27680128]
[1767318270991,3.88072946,3002.0,3001.5,2.27680128]
[1767318271197,2.27569741,3001.9,3001.5,2.27680128]
[1767318278194,2.27669741,3001.9,3001.5,2.27680128]
[1767318317498,2.27669741,3001.9,3001.0,2.36512783]
[1767318317499,2.28801472,3001.8,3001.0,2.36512783]
[1767318317696,2.28801472,3001.8,3001.1,2.36512783]
[1767318319434,2.28801472,3001.8,3001.3,2.36512783]
[1767318319612,0.001,3001.9,3001.5,2.36512783]
[1767318319803,0.22890147,3001.8,3001.5,2.36512783]
[1767318320005,0.001,3001.9,3001.5,2.36512783]
[1767318320802,2.28901472,3001.9,3001.5,2.36512783]
[1767318324141,2.28901472,3001.9,3001.5,2.36712783]
[1767318327416,2.49031809,3002.1,3001.6,2.25199974]
[1767318327619,0.001,3002.2,3001.6,2.25199974]
[1767318327809,0.001,3002.2,3001.8,2.25199974]
[1767318328135,2.49131809,3002.2,3001.8,2.25199974]
[1767318330628,2.49131809,3002.2,3001.6,2.25199974]
[1767318365066,2.49131809,3002.2,3001.5,0.877]
[1767318365231,2.49131809,3002.2,3001.5,3.33360012]
[1767318366283,2.49131809,3002.2,3001.5,0.877]
[1767318366460,2.49131809,3002.2,3001.5,3.33360012]
[1767318366761,2.49131809,3002.2,3001.6,2.45660012]
[1767318398078,2.49131809,3002.2,3001.7,0.03331445]
[1767318398280,2.49131809,3002.2,3001.8,2.36048121]
[1767318399827,0.001,3002.2,3001.8,2.36048121]
[1767318400027,0.001,3002.2,3002.0,2.36048121]
[1767318400603,0.001,3002.2,3001.7,2.36048121]
[1767318400815,2.40811898,3002.2,3001.8,2.63317423]
[1767318404142,2.40811898,3002.2,3001.8,2.59986089]
[1767318406741,2.40811898,3002.4,3001.9,2.39379344]
[1767318406917,2.40811898,3002.4,3001.9,2.36048121]
[1767318407112,2.40811898,3002.4,3001.9,2.6204673]
[1767318407641,2.40811898,3002.4,3001.9,2.65377953]
[1767318419257,0.001,3002.4,3001.9,2.65377953]
[1767318419452,2.28896798,3002.6,3002.0,2.34396612]
[1767318420867,1.00116836,3002.7,3002.0,2.34396612]
[1767318420868,0.001,3002.4,3002.0,2.34396612]
[1767318421272,2.28996798,3002.4,3002.0,2.34396612]
[1767318421791,2.28896798,3002.1,3001.6,0.03331556]
[1767318421991,2.287969,3001.6,3001.0,1.41770984]
[1767318422195,2.28896798,3001.4,3001.1,1.41770984]
[1767318422493,3.88079948,3001.2,3000.7,1.35004419]
[1767318422683,2.28896798,3001.1,3000.7,1.35004419]
[1767318423492,3.28951327,3001.1,3000.7,1.35004419]
[1767318424172,2.28896798,3001.1,3000.7,1.35004419]
[1767318426206,1.00054529,3001.2,3000.7,1.35004419]
[1767318426494,3.3313743,3001.8,3000.8,0.43365465]
[1767318426704,1.00048857,3001.6,3000.8,0.43365465]
[1767318426860,2.28896798,3001.5,3000.8,0.43365465]
[1767318427284,2.28896798,3001.5,3000.7,0.002]
[1767318427469,2.28896798,3001.4,3000.8,0.875]
[1767318427885,2.28896798,3001.4,3000.8,1.27533021]
[1767318432508,2.28896798,3001.4,3000.7,0.002]
[1767318432676,2.28896798,3001.4,3000.8,0.875]
[1767318435276,2.28896798,3001.4,3000.8,0.877]
[1767318435476,2.28896798,3001.3,3000.8,0.877]
[1767318438108,2.28896798,3001.2,3000.7,0.002]
[1767318452273,2.28896798,3001.2,3000.7,1.27933021]
[1767318457648,2.28996798,3001.2,3000.7,1.27933021]
[1767318457973,2.45568868,3001.1,3000.7,1.27933021]
[1767318463423,2.45568868,3000.9,3000.3,0.002]
[1767318463730,2.45568868,3000.9,3000.3,1.28733021]
[1767318465906,2.45668868,3001.2,3000.7,1.28533021]
[1767318466111,0.001,3001.3,3000.7,1.28533021]
[1767318466112,0.001,3001.3,3000.7,0.40933021]
[1767318468021,2.45668868,3001.3,3000.7,0.40933021]
[1767318468813,2.70235755,3001.3,3000.6,0.002]
[1767318470090,6.03429829,3001.3,3000.6,0.002]
[1767318470292,2.45568868,3001.2,3000.6,0.002]
[1767318473117,3.33201206,3001.2,3000.6,0.002]
[1767318473417,2.45568868,3001.1,3000.6,0.002]
[1767318473583,3.05922564,3001.1,3000.6,0.002]
[1767318473784,3.05922564,3001.1,3000.3,0.41333021]
[1767318473988,2.39482495,3001.0,3000.3,0.41333021]
[1767318484324,2.39582495,3001.2,3000.5,0.41133021]
[1767318484523,2.39582495,3001.2,3000.7,0.41133021]
[1767318484862,0.001,3001.3,3000.4,0.44365909]
[1767318485060,0.001,3001.3,3000.6,0.41033021]
[1767318487057,0.001,3001.3,3000.7,1.28533021]
[1767318487258,2.39482495,3001.6,3000.8,0.40933021]
[1767318488732,2.39482495,3001.5,3000.7,0.875]
[1767318488932,2.39482495,3001.5,3000.8,0.40933021]
[1767318489136,2.39582495,3001.3,3000.8,0.40933021]
[1767318489852,2.39482495,3001.7,3000.8,0.40833021]
[1767318490254,2.39482495,3001.6,3000.8,0.40833021]
[1767318490568,2.39482495,3001.6,3001.0,0.40833021]
[1767318491271,5.72638721,3001.6,3001.0,0.40833021]
[1767318491574,2.39482495,3001.5,3001.0,0.40833021]
[1767318495679,2.39582495,3001.5,3001.0,0.40833021]
[1767318496182,2.39582495,3001.5,3001.0,0.44165243]
[1767318496691,2.39582495,3001.5,3001.0,0.40833021]
[1767318499430,2.39482495,3001.9,3001.2,0.40733021]
[1767318499585,2.39482495,3001.9,3001.4,0.40733021]
[1767318504125,2.39582495,3001.9,3001.4,0.40733021]
[1767318504424,0.001,3001.9,3001.6,0.40733021]
[1767318505812,2.28614906,3001.9,3001.6,0.40733021]
[1767318505992,2.28614906,3001.9,3001.4,0.40733021]
[1767318506191,2.28614906,3001.9,3001.4,0.57845816]
[1767318507024,2.28614906,3001.9,3001.5,0.40733021]
[1767318517812,0.001,3001.9,3001.5,0.40733021]
[1767318518201,2.28514906,3002.3,3001.7,0.40633021]
[1767318519133,2.28514906,3002.3,3001.9,0.40633021]
[1767318522226,0.001,3002.4,3001.9,0.40633021]
[1767318522615,2.28614906,3002.4,3001.9,0.40633021]
[1767318528838,0.001,3002.4,3001.8,3.88216308]
[1767318529037,0.001,3002.5,3002.0,0.40533021]
[1767318529210,0.001,3002.5,3002.2,0.40533021]
[1767318529410,2.28614906,3002.5,3002.2,0.40533021]
[1767318529941,2.28614906,3002.5,3002.0,0.40533021]
[1767318534230,2.28614906,3002.5,3001.8,0.40533021]
[1767318534836,2.28614906,3002.5,3002.0,0.002]
[1767318535039,2.36379407,3002.4,3002.0,0.002]
[1767318538023,2.36379407,3002.4,3002.0,0.40733021]
[1767318543148,2.36379407,3002.4,3001.6,0.40733021]
[1767318543349,2.36379407,3002.4,3001.7,0.875]
[1767318543534,2.36379407,3002.4,3001.8,0.40733021]
[1767318544220,2.36379407,3002.4,3001.8,0.44064355]
[1767318545054,2.36379407,3002.4,3001.8,0.40733021]
[1767318545218,2.60037348,3002.4,3001.8,0.40733021]
[1767318545646,2.60037348,3002.4,3001.9,0.40733021]
[1767318545647,2.36379407,3002.4,3001.9,0.40733021]
[1767318548749,2.36379407,3002.4,3002.0,0.44064133]
[1767318550935,2.36379407,3002.4,3002.0,0.40733021]
[1767318551124,0.001,3002.5,3002.0,0.44064133]
[1767318551621,2.36479407,3002.5,3002.0,0.44064133]
[1767318551821,2.36479407,3002.5,3002.0,0.40733021]
[1767318552057,2.36479407,3002.5,3002.1,0.44064022]
[1767318552353,2.36479407,3002.5,3002.1,0.40733021]
[1767318554473,2.36479407,3002.5,3001.9,0.002]
[1767318554474,2.36479407,3002.5,3001.9,0.40933021]
[1767318556065,2.36479407,3002.5,3002.0,0.002]
[1767318556247,2.36479407,3002.5,3002.0,0.40933021]
[1767318580367,2.36479407,3002.5,3002.1,0.40733021]
[1767318583062,0.001,3002.5,3002.1,3.3309805]
[1767318583394,0.001,3002.8,3002.3,0.40433021]
[1767318585195,0.001,3002.8,3002.4,0.40433021]
[1767318585196,2.29099898,3002.8,3002.4,0.40433021]
[1767318586098,0.001,3002.7,3002.4,0.40433021]
[1767318586396,0.001,3002.7,3002.4,0.86534868]
[1767318586998,2.29099898,3002.8,3002.5,0.40433021]
[1767318586999,0.001,3002.8,3002.5,0.40433021]
[1767318587877,0.001,3003.0,3002.6,0.40233021]
[1767318588096,0.001,3003.2,3002.8,0.40133021]
[1767318588314,2.20566221,3003.4,3002.8,0.48566698]
[1767318589793,2.28999898,3003.3,3002.7,0.875]
[1767318589990,2.28999898,3003.3,3002.6,0.875]
[1767318590300,2.28999898,3003.3,3002.6,1.39023294]
[1767318593723,2.29099898,3003.3,3002.6,1.39023294]
[1767318594206,2.29099898,3003.3,3002.6,1.87589992]
[1767318596694,2.29099898,3003.3,3002.6,4.6911101]
[1767318597490,2.29099898,3003.3,3002.7,0.48566698]
[1767318599810,2.29099898,3003.3,3002.7,0.875]
[1767318601501,2.29099898,3003.3,3002.8,0.48566698]
[1767318602018,0.001,3003.7,3003.0,0.48266698]
[1767318602195,2.39005485,3003.7,3003.1,0.43627602]
[1767318602516,2.39005485,3003.7,3003.2,0.875]
[1767318603525,2.39005485,3003.7,3003.2,1.35666698]
[1767318605020,2.39005485,3003.7,3003.3,0.48166698]
[1767318605223,0.001,3003.8,3003.3,0.48166698]
[1767318605422,2.39105485,3003.8,3003.3,0.48166698]
[1767318605592,2.39105485,3003.8,3003.4,0.95031002]
[1767318606229,2.39105485,3003.8,3002.7,0.875]
[1767318606404,2.39005485,3003.5,3002.8,3.33022013]
[1767318606606,2.39005485,3003.5,3002.9,1.26833021]
[1767318606927,2.39005485,3003.5,3003.0,4.63160456]
[1767318607526,2.39005485,3003.5,3003.0,4.59830453]